[Event "FRA-ch Teams Top 16-Bas 2022"]
[Site "Chartres"]
[Date "2022.06.19"]
[Round "11.15"]
[White "Jrade, Willis"]
[Black "Eden, James"]
[Result "0-1"]
[ECO "A26"]
[WhiteElo "2129"]
[BlackElo "2273"]
[Annotator "TA"]
[PlyCount "94"]
[EventDate "2022.06.16"]
[EventType "team-tourn"]
[EventCountry "FRA"]
[SourceTitle "playchess.com"]
[Source "ChessBase"]
[SourceQuality "1"]
[TimeControl "40/5400+30:1800+30"]

{[%evp 15,94,11,17,20,22,13,22,11,33,28,29,25,32,26,38,22,31,18,18,18,18,18,18,18,22,22,24,-7,-7,-6,-6,-7,-7,-8,-8,-32,-12,-20,-20,-20,-8,-14,-10,-9,-9,-25,-18,-28,-18,-35,-9,-51,-51,-195,-164,-140,-153,-126,0,0,0,-306,-305,-681,-681,-1377,-915,-872,0,-1164,-1014,-29991,-1789,-1257,-1205,-29995,-29996,-29996,-513,-29997,-29998]} 1. c4 {[%emt 0:00:14]} Nf6 {[%emt 0:01:50]} 2. Nc3 {[%emt 0:00:11]} g6 {[%emt 0:00:25]} 3. g3 {[%emt 0:00:48]} Bg7 {[%emt 0:00:18]} 4. Bg2 {[%emt 0:00:01]} O-O {[%emt 0:00:33]} 5. Nf3 {[%emt 0:01:29]} d6 {[%emt 0:01:13]} 6. O-O {[%emt 0:01:16]} e5 {[%emt 0:01:57]} 7. d3 {[%emt 0:05:08]} Nc6 {[%emt 0:01:31]} 8. Rb1 {[%emt 0:02:51]} Re8 {[%emt 0:03:50]} 9. e4 {[%emt 0:02:15] A26: English Opening vs King's Indian with ...Nc6 and d3.} Bg4 {[%emt 0:12:30]} 10. h3 {[%emt 0:01:09]} Bxf3 {[%emt 0:00:40]} 11. Bxf3 {[%emt 0:00:07] The position is equal.} Nd7 {[%emt 0:00:22][%cal Bf6d7,Bd7f8,Bf8e6][%mdl 32]} 12. b4 {[%emt 0:06:09]} Nf8 {[%emt 0:01:16]} 13. Be3 {[%emt 0:02:38]} Ne6 {[%emt 0:01:25]} 14. Bg2 {[%emt 0:09:02]} h5 {[%emt 0:04:47] [#]} 15. Qd2 $146 {[%emt 0:05:53] Threatening f4.} ({Predecessor:} 15. b5 Ncd4 16. Ne2 Nxe2+ 17. Qxe2 Qe7 18. h4 Kh7 19. Bh3 Nc5 20. Qd2 b6 21. Rbd1 {0-1 (53) Rodriguez Valdeavaro,J (1847)-Torres Bosch,J (2143) San Sebastian 2017}) 15... h4 {[%emt 0:01:15]} 16. Ne2 {[%emt 0:02:35]} (16. Nd5 {seems wilder.} Ncd4 17. f4 exf4 18. gxf4 f5 19. b5) 16... Ncd4 {[%emt 0:03:49]} 17. Bxd4 {[%emt 0:03:05]} exd4 {[%emt 0:02:40]} 18. g4 {[%emt 0:01:32]} g5 {[%emt 0:02:53]} 19. f4 {[%emt 0:02:07] Against Be5} gxf4 {[%emt 0:00:23]} 20. Nxf4 {[%emt 0:01:10]} Qg5 {[%emt 0:04:37] [#] ...Be5 is the strong threat.} 21. Qc1 {[%emt 0:16:12]} Bh6 {[%emt 0:05:49][%cal Re6f4]} 22. Nxe6 {[%emt 0:02:30]} Qxc1 {[%emt 0:00:24]} 23. Rbxc1 {[%emt 0:01:13][%cal Oe6c7]} fxe6 {[%emt 0:00:25]} 24. Rb1 {[%emt 0:00:34]} Rf8 {[%emt 0:03:36]} 25. a3 {[%emt 0:08:39][%cal Oe4e5]} Rab8 {[%emt 0:05:15]} 26. a4 {[%emt 0:06:03]} Be3+ {[%emt 0:01:46]} 27. Kh1 {[%emt 0:00:22]} Bf4 {[%emt 0:01:41]} 28. Bf3 {[%emt 0:01:34]} Kg7 {[%emt 0:01:18]} 29. Kg2 {[%emt 0:00:43]} Kf6 {[%emt 0:01:21]} 30. Be2 {[%emt 0:05:53]} Kg5 {[%emt 0:01:43]} 31. b5 {[%emt 0:02:08]} Bg3 {[%emt 0:04:57]} 32. Kg1 {[%emt 0:03:34]} Rf4 {[%emt 0:00:49]} 33. a5 {[%emt 0:02:31][%cal Oe4e5]} (33. e5 $5) 33... Rbf8 {[%emt 0:04:18]} 34. a6 {[%emt 0:02:54] [#]} (34. Rxf4 $15 Rxf4 35. Rf1) 34... bxa6 $1 $19 {[%emt 0:02:34]} 35. bxa6 {[%emt 0:01:07]} Rf2 {[%emt 0:02:51]} 36. Rb7 {[%emt 0:01:23]} R8f4 {[%emt 0:04:20] Black is more active.} (36... Bh2+ $17 37. Kh1 R8f6 38. Rxa7 Rxe2 39. Rxf6 Kxf6) 37. Rxf2 $11 {[%emt 0:01:24]} Rxf2 {[%emt 0:00:15][%mdl 4096] Endgame KRB-KRB} 38. Bf1 {[%emt 0:00:32][%mdl 8192]} (38. Rxa7 $11 {and White has nothing to worry.} Rxe2 39. Ra8 (39. Rxc7 $2 Ra2 $19)) 38... Ra2 $19 {[%emt 0:01:27]} 39. Rxa7 $2 {[%emt 0:00:15]} (39. Bg2 Rxa6 40. Bf1) 39... Kf4 {[%emt 0:00:46]} 40. Ra8 {[%emt 0:00:44]} Bf2+ {[%emt 0:00:34]} 41. Kh2 {[%emt 0:07:13]} Bg3+ {[%emt 0:04:34]} 42. Kg1 {[%emt 0:02:45][%cal Og4g5]} Kf3 {[%emt 0:01:12]} 43. a7 {[%emt 0:21:35]} Bf4 {[%emt 0:01:11]} (43... Bf2+ $142 44. Kh1 Be3 45. Rf8+ Kg3 46. Rf3+ Kxf3 47. a8=Q Rxa8 48. Kh2 Ra2+ 49. Bg2+ Rxg2+ 50. Kh1 Kg3 51. g5 Rh2#) 44. Rf8 {[%emt 0:00:29]} Kg3 {[%emt 0:01:42] ( -> ...Be3+)} 45. a8=Q {[%emt 0:00:31]} Be3+ {[%emt 0:00:13]} 46. Rf2 {[%emt 0:00:04]} Bxf2+ {[%emt 0:00:07]} 47. Kh1 {[%emt 0:00:02]} Rxa8 {[%emt 0:00:13] Weighted Error Value: White=0.77/Black=0.51} 0-1

[Event "FRA-ch Teams Top 16-Bas 2022"]
[Site "Chartres"]
[Date "2022.06.19"]
[Round "11.16"]
[White "Dieuleveut, Floriane"]
[Black "Djidjeli, Sarah"]
[Result "0-1"]
[ECO "B33"]
[WhiteElo "1863"]
[BlackElo "2040"]
[Annotator "NA RC"]
[PlyCount "56"]
[EventDate "2022.06.16"]
[EventType "team-tourn"]
[EventCountry "FRA"]
[SourceTitle "playchess.com"]
[Source "ChessBase"]
[SourceQuality "1"]
[TimeControl "40/5400+30:1800+30"]

1. e4 {[%emt 0:00:19]} c5 {[%emt 0:00:03]} 2. Nf3 {[%emt 0:00:06]} Nc6 {[%emt 0:00:06]} 3. d4 {[%emt 0:00:09]} cxd4 {[%emt 0:00:04]} 4. Nxd4 {[%emt 0:00:06]} Nf6 {[%emt 0:01:12]} 5. Nc3 {[%emt 0:02:22]} e5 {[%emt 0:00:04]} 6. Ndb5 {[%emt 0:03:30]} d6 {[%emt 0:00:05]} 7. Bg5 {[%emt 0:06:18]} a6 {[%emt 0:00:11]} 8. Bxf6 {[%emt 0:02:49]} gxf6 {[%emt 0:00:05]} 9. Na3 {[%emt 0:01:11]} b5 {[%emt 0:02:02]} 10. Nd5 {[%emt 0:08:10]} Bg7 {[%emt 0:00:41]} 11. c4 {[%emt 0:21:40]} f5 {[%emt 0:20:03]} 12. cxb5 {[%emt 0:11:11]} Ne7 {[%emt 0:02:00]} 13. Nxe7 {[%emt 0:12:54]} Kxe7 {[%emt 0:07:38]} 14. exf5 {[%emt 0:13:43]} Bxf5 {[%emt 0:05:59]} 15. Qd2 {[%emt 0:00:20]} Be6 {[%emt 0:08:23]} 16. bxa6 {[%emt 0:03:57]} h5 {[%emt 0:06:33]} 17. Bc4 {[%emt 0:04:25]} Bh6 {[%emt 0:06:11]} 18. Qb4 {[%emt 0:01:45]} Qb8 {[%emt 0:08:03]} 19. Qxb8 {[%emt 0:00:59]} Rhxb8 {[%emt 0:00:16]} 20. Bxe6 {[%emt 0:00:27]} Kxe6 {[%emt 0:00:09]} 21. b3 {[%emt 0:01:21]} Rxa6 {[%emt 0:01:18]} 22. Nc2 {[%emt 0:00:06]} Rc6 {[%emt 0:02:55]} 23. Ne3 {[%emt 0:00:14]} f5 {[%emt 0:05:41]} 24. O-O {[%emt 0:00:16]} f4 {[%emt 0:01:20]} 25. Nd1 {[%emt 0:01:58]} Rc2 {[%emt 0:01:47]} 26. f3 {[%emt 0:00:18]} e4 {[%emt 0:03:40]} 27. fxe4 {[%emt 0:01:42]} Bg7 {[%emt 0:01:18]} 28. Rxf4 {[%emt 0:00:12]} Bxa1 {[%emt 0:00:08]} 0-1

[Event "FRA-ch Teams Top 16-Bas 2022"]
[Site "Chartres"]
[Date "2022.06.19"]
[Round "11.17"]
[White "Duboue, Peio"]
[Black "Feller, Sebastien"]
[Result "1/2-1/2"]
[ECO "C55"]
[WhiteElo "2426"]
[BlackElo "2569"]
[Annotator "TA"]
[PlyCount "34"]
[EventDate "2022.06.16"]
[EventType "team-tourn"]
[EventCountry "FRA"]
[SourceTitle "playchess.com"]
[Source "ChessBase"]
[SourceQuality "1"]
[TimeControl "40/5400+30:1800+30"]

{[%evp 10,34,26,24,30,18,36,20,31,31,25,-4,-4,-8,0,-8,0,0,0,0,0,0,0,0,0,-11,0]} 1. e4 {[%emt 0:00:03]} e5 {[%emt 0:00:32]} 2. Nf3 {[%emt 0:00:04]} Nc6 {[%emt 0:01:21]} 3. Bc4 {[%emt 0:00:04]} Nf6 {[%emt 0:00:33]} 4. d3 {[%emt 0:01:07]} Be7 {[%emt 0:00:05]} 5. O-O {[%emt 0:00:19]} O-O {[%emt 0:00:06]} 6. a4 {[%emt 0:00:16]} a5 {[%emt 0:00:38] C55: Two Knights: 4 d3, 4 d4 exd4 5 e5 and Max Lange Attack.} 7. Re1 {[%emt 0:03:41]} d6 {[%emt 0:01:37]} (7... Bc5 {seems wilder.} 8. Na3 h6 9. c3 d6) 8. Nbd2 {[%emt 0:00:32][%cal Bb1d2,Bd2f1,Bf1e3][%mdl 32]} Be6 {[%emt 0:18:47]} 9. c3 {[%emt 0:03:28]} Nd7 {[%emt 0:10:47][%cal Bf6d7,Bd7c5,Bc5e6,Be6g5][%mdl 32]} 10. Nf1 {[%emt 0:02:10]} Bxc4 {[%emt 0:18:47] The position is equal.} 11. dxc4 {[%emt 0:00:16]} Nc5 {[%emt 0:00:09]} 12. Qc2 {[%emt 0:15:51] [#]} Ne6 $146 {[%emt 0:01:44]} ({Predecessor:} 12... Bf6 13. Ne3 g6 14. Nd5 Bg7 15. Bg5 Qd7 16. Bf6 Qc8 17. Bxg7 Kxg7 18. b4 Ne6 {½-½ (30) Rozentalis,E (2520)-Romanishin,O (2404) Warsaw 2021}) 13. Ne3 {[%emt 0:03:01]} Ng5 {[%emt 0:00:31]} 14. Nd2 {[%emt 0:03:12]} Ne6 {[%emt 0:00:13]} 15. Nf3 {[%emt 0:01:55]} Ng5 {[%emt 0:02:36]} 16. Nd2 {[%emt 0:03:07]} Ne6 {[%emt 0:00:20]} 17. Nf3 {[%emt 0:06:03]} Ng5 {[%emt 0:00:56] An uneventful encounter.  Weighted Error Value: White=0.05 (flawless) /Black=0.02 (flawless)} 1/2-1/2

[Event "FRA-ch Teams Top 16-Bas 2022"]
[Site "Chartres"]
[Date "2022.06.19"]
[Round "11.18"]
[White "Koch, Jean-Rene"]
[Black "Eugene, Floryan"]
[Result "0-1"]
[ECO "A19"]
[WhiteElo "2441"]
[BlackElo "2370"]
[Annotator "TA"]
[PlyCount "72"]
[EventDate "2022.06.16"]
[EventType "team-tourn"]
[EventCountry "FRA"]
[SourceTitle "playchess.com"]
[Source "ChessBase"]
[SourceQuality "1"]
[TimeControl "40/5400+30:1800+30"]

{[%evp 27,72,30,8,18,6,-55,-74,-111,-105,-107,-113,-116,-105,-153,-155,-150,-116,-141,-152,-161,-179,-180,-182,-808,-805,-887,-866,-874,-878,-843,-836,-835,-815,-795,-778,-750,-631,-1050,-1024,-1212,-1120,-1637,-1613,-2872,-2629,-2785,-2553]} 1. c4 {[%emt 0:00:02]} Nf6 {[%emt 0:00:11]} 2. Nc3 {[%emt 0:00:14]} e6 {[%emt 0:01:11]} 3. e4 {[%emt 0:01:02][%cal Be2e4,Be4e5][%mdl 32]} c5 {[%emt 0:00:52]} 4. e5 {[%emt 0:03:10]} Ng8 {[%emt 0:00:13]} 5. Nf3 {[%emt 0:00:15]} Nc6 {[%emt 0:00:29]} 6. d4 {[%emt 0:00:26]} cxd4 {[%emt 0:00:54]} 7. Nxd4 {[%emt 0:00:06]} Nxe5 {[%emt 0:00:40]} 8. Ndb5 {[%emt 0:00:09]} a6 {[%emt 0:01:35]} 9. Nd6+ {[%emt 0:00:08]} Bxd6 {[%emt 0:00:03]} 10. Qxd6 {[%emt 0:00:08]} f6 {[%emt 0:00:17]} 11. Be3 {[%emt 0:12:50]} Ne7 {[%emt 0:00:21][%cal Bg8e7,Be7f5,Bf5d6,Bd6e8,Be8f6,Bf6d5][%mdl 32]} 12. Bb6 {[%emt 0:03:05]} Nf5 {[%emt 0:00:05]} 13. Bxd8 {[%emt 0:30:10] 13.Qb4 gains popularity.} Nxd6 {[%emt 0:00:12]} 14. Bc7 {[%emt 0:00:06]} Ke7 $1 {[%emt 0:25:13]} ({Less strong is} 14... Nexc4 15. b3 b5 16. bxc4 Nxc4 17. a4 $16) (14... Ndxc4 15. f4 Ne3 16. fxe5 $16) 15. c5 {[%emt 0:08:53] A19: English Opening: Flohr-Mikenas System with 3...c5.} Ne8 {[%emt 0:00:24]} 16. Bxe5 {[%emt 0:01:16]} (16. Bb6 $11) 16... fxe5 $15 {[%emt 0:00:04]} 17. O-O-O {[%emt 0:00:25] Black is better.} b6 {[%emt 0:07:59]} 18. cxb6 {[%emt 0:00:42]} Rb8 {[%emt 0:00:16]} 19. Bd3 {[%emt 0:10:34]} Nf6 {[%emt 0:13:10]} 20. Na4 {[%emt 0:12:48]} (20. Rhe1 $142) 20... d6 $17 {[%emt 0:01:13]} 21. b3 {[%emt 0:00:55] [#]} Nd5 $146 {[%emt 0:04:34]} ({Predecessor:} 21... Bd7 22. Bxa6 Bxa4 23. bxa4 Rxb6 24. Bb5 Ne4 25. Rhe1 Rc8+ {0-1 (25) Hofland,L (2295)-Timman,J (2625) Leeuwarden 1979}) 22. Kb2 {[%emt 0:01:48]} Bd7 {[%emt 0:04:35]} ({Not} 22... Nxb6 23. Nxb6 Rxb6 24. Rc1 $15) 23. Ka3 {[%emt 0:03:30]} Bxa4 {[%emt 0:10:17]} 24. Kxa4 {[%emt 0:01:10]} e4 {[%emt 0:00:28]} ({Stronger than} 24... Rxb6 25. Ka3 $17) 25. Bxa6 $2 {[%emt 0:03:08]} (25. Bb1) 25... Rxb6 $19 {[%emt 0:00:47] Black is clearly winning.} 26. Rxd5 {[%emt 0:00:55]} exd5 {[%emt 0:03:52]} 27. Ka5 {[%emt 0:00:08] [#]} Rxa6+ $1 {[%emt 0:05:30][%mdl 512]} 28. Kxa6 {[%emt 0:00:02][%mdl 4096] Endgame KR-KR} Ra8+ {[%emt 0:00:06]} 29. Kb5 {[%emt 0:00:07]} Rxa2 {[%emt 0:00:03]} 30. Rf1 {[%emt 0:01:09]} Rb2 {[%emt 0:03:50]} 31. b4 {[%emt 0:00:15]} Ke6 {[%emt 0:00:07]} 32. Ka5 {[%emt 0:04:05]} d4 {[%emt 0:00:21][%cal Bd5d4,Bd4d3,Bd3d2][%mdl 32] [#] Threatens to win with ...d3.} 33. b5 {[%emt 0:00:24]} Kd5 {[%emt 0:02:54]} 34. Ka6 {[%emt 0:00:58]} d3 {[%emt 0:00:11]} 35. b6 {[%emt 0:01:31]} d2 {[%emt 0:00:12]} 36. Rd1 {[%emt 0:00:59]} Kc6 {[%emt 0:01:15] Weighted Error Value: White=1.25/Black=0.15 (very precise)} 0-1

[Event "FRA-ch Teams Top 16-Bas 2022"]
[Site "Chartres"]
[Date "2022.06.19"]
[Round "11.19"]
[White "Di Nicolantonio, Lucas"]
[Black "Visakh N R"]
[Result "1/2-1/2"]
[ECO "D32"]
[WhiteElo "2399"]
[BlackElo "2506"]
[Annotator "TA"]
[PlyCount "108"]
[EventDate "2022.06.16"]
[EventType "team-tourn"]
[EventCountry "FRA"]
[SourceTitle "playchess.com"]
[Source "ChessBase"]
[SourceQuality "1"]
[TimeControl "40/5400+30:1800+30"]

{[%evp 24,108,45,41,34,47,66,66,73,60,66,60,55,70,68,53,59,54,50,51,118,110,108,63,57,61,63,61,55,60,86,75,137,12,11,2,63,62,50,44,50,45,41,0,0,0,0,0,14,24,13,11,11,0,0,0,0,0,0,0,0,0,0,0,0,0,0,0,0,0,0,0,0,0,0,0,0,0,0,0,0,0,0,0,0,0,0]} 1. Nf3 {[%emt 0:00:48]} d5 {[%emt 0:00:10]} 2. e3 {[%emt 0:00:41]} c5 {[%emt 0:02:52]} 3. b3 {[%emt 0:01:31]} Nc6 {[%emt 0:00:35]} 4. Bb2 {[%emt 0:00:39]} Nf6 {[%emt 0:00:52]} 5. Bb5 {[%emt 0:01:50]} Bd7 {[%emt 0:00:20]} 6. O-O {[%emt 0:03:51]} a6 {[%emt 0:00:11]} 7. Be2 {[%emt 0:03:33]} Bg4 {[%emt 0:03:56]} 8. c4 {[%emt 0:09:01]} e6 {[%emt 0:02:26]} 9. cxd5 {[%emt 0:11:48]} exd5 {[%emt 0:00:03]} 10. d4 {[%emt 0:03:29]} Bd6 {[%emt 0:07:38]} 11. dxc5 {[%emt 0:01:29]} Bxc5 {[%emt 0:00:02]} 12. Nc3 {[%emt 0:02:46]} O-O {[%emt 0:00:43]} 13. Rc1 {[%emt 0:02:55][%cal Oc3d5]} Ba7 {[%emt 0:02:52] D32: Tarrasch Defence: Sidelines and lines without g3.} 14. h3 {[%emt 0:04:11]} Bh5 {[%emt 0:02:03]} 15. Nh4 $1 {[%emt 0:05:03]} Bg6 {[%emt 0:03:43] White is slightly better.} 16. Nxg6 {[%emt 0:00:39]} hxg6 {[%emt 0:00:02]} 17. Bf3 {[%emt 0:00:39]} d4 {[%emt 0:00:30]} 18. exd4 {[%emt 0:00:27]} Bxd4 {[%emt 0:00:06][%cal Ba7d4,Bd4e5,Be5f4,Bf4d2][%mdl 32] [#]} 19. Qd2 $146 {[%emt 0:11:19]} ({Predecessor:} 19. Bxc6 bxc6 20. Na4 Bxb2 21. Nxb2 Qd5 22. Na4 Rad8 23. Qc2 Rfe8 24. Nc5 a5 25. Nb7 Rd7 26. Rfd1 {½-½ (89) Nakamura,H (2736)-Popilski,G (2464) Chess.com INT 2021}) 19... Be5 {[%emt 0:05:43]} 20. Qxd8 {[%emt 0:02:14]} Rfxd8 {[%emt 0:00:02]} 21. Rfd1 {[%emt 0:00:48] Inhibits Rd2.} Nd4 {[%emt 0:10:23]} (21... Rac8 $14) 22. Bxb7 $16 {[%emt 0:05:00] This bishop pair is nice.} Ra7 {[%emt 0:01:55][%cal Ba8a7,Ba7d7,Bd7d3][%mdl 32]} 23. Bf3 {[%emt 0:03:07]} Rad7 {[%emt 0:09:19]} 24. Kf1 $1 {[%emt 0:02:05]} Bf4 {[%emt 0:11:21]} 25. Rb1 {[%emt 0:01:33]} Nxf3 {[%emt 0:03:01]} 26. gxf3 {[%emt 0:00:17]} Bd2 {[%emt 0:00:16]} 27. Na4 {[%emt 0:06:25]} Nh5 {[%emt 0:09:55]} (27... Bb4 $142 28. Rxd7 Rxd7) 28. Nb6 {[%emt 0:09:17]} (28. Nc5 $16 Rd5 29. Nxa6) 28... Rd3 $11 {[%emt 0:00:22]} 29. Nc4 {[%emt 0:00:20]} f6 {[%emt 0:02:48]} ({Black should play} 29... Bb4 $11 30. Ne3 Bd2) 30. Nxd2 $14 {[%emt 0:03:00]} ({Reject} 30. Rxd2 Rxd2 31. Nxd2 Rxd2 $11) 30... Rxd2 {[%emt 0:00:04]} 31. Ke1 {[%emt 0:00:19]} R2d3 {[%emt 0:00:47]} 32. Rxd3 {[%emt 0:02:38]} Rxd3 {[%emt 0:00:02][%mdl 4096] Endgame KRB-KRN} 33. Bc1 {[%emt 0:01:39] Threatens to win with Be3.} Rxf3 {[%emt 0:00:08]} 34. Be3 {[%emt 0:00:27]} Rxh3 {[%emt 0:00:36] [#] Hoping for ...Rh1+.} 35. Ke2 {[%emt 0:00:44]} f5 {[%emt 0:00:02]} 36. Rc1 {[%emt 0:00:28]} Nf6 {[%emt 0:02:12]} 37. Rc6 {[%emt 0:00:24] The position is equal.} Nd5 {[%emt 0:00:19]} 38. Rxa6 {[%emt 0:00:38]} Nxe3 {[%emt 0:00:36]} 39. fxe3 $11 {[%emt 0:00:07] KR-KR} g5 {[%emt 0:00:14]} 40. b4 {[%emt 0:01:33][%cal Bb3b4,Bb4b5,Bb5b6][%mdl 32]} Rh2+ {[%emt 0:00:37]} 41. Kf3 {[%emt 0:12:05]} g4+ {[%emt 0:15:12]} 42. Kg3 {[%emt 0:04:18]} Rh3+ {[%emt 0:07:11]} 43. Kf2 $1 {[%emt 0:00:47]} Kf7 {[%emt 0:02:34]} 44. b5 {[%emt 0:03:12]} g5 {[%emt 0:01:42]} 45. b6 {[%emt 0:02:17]} Rh2+ {[%emt 0:03:16]} 46. Kg3 {[%emt 0:01:52]} Rb2 {[%emt 0:06:42]} 47. e4 {[%emt 0:06:47]} fxe4 {[%emt 0:00:18]} 48. Kxg4 {[%emt 0:00:18]} Kf6 {[%emt 0:04:15]} 49. a4 {[%emt 0:01:15] [#] aiming for a5.} Ke5 {[%emt 0:01:26]} 50. Ra5+ {[%emt 0:01:46]} Kd6 {[%emt 0:00:13]} 51. Kxg5 {[%emt 0:00:55]} e3 {[%emt 0:00:37]} 52. Ra8 {[%emt 0:00:26]} Kd7 {[%emt 0:01:08]} (52... e2 $5 53. Re8 Kc6 $11) 53. Ra7+ {[%emt 0:00:30]} Kd6 {[%emt 0:00:16] ( -> ...e2)} 54. Ra8 {[%emt 0:00:05]} Ke5 {[%emt 0:00:40] Weighted Error Value: White=0.08 (flawless) /Black=0.08 (flawless)} 1/2-1/2

[Event "FRA-ch Teams Top 16-Bas 2022"]
[Site "Chartres"]
[Date "2022.06.19"]
[Round "11.20"]
[White "Lazarev, Vladimir"]
[Black "Hutois, Mickael"]
[Result "1-0"]
[ECO "E12"]
[WhiteElo "2491"]
[BlackElo "2238"]
[Annotator "TA"]
[PlyCount "73"]
[EventDate "2022.06.16"]
[EventType "team-tourn"]
[EventCountry "FRA"]
[SourceTitle "playchess.com"]
[Source "ChessBase"]
[SourceQuality "1"]
[TimeControl "40/5400+30:1800+30"]

{[%evp 19,73,4,28,28,45,43,65,27,36,26,23,31,34,32,64,65,62,59,93,59,57,56,106,5,103,91,163,93,131,135,121,129,245,168,147,119,189,187,266,256,265,267,267,271,257,212,420,409,837,799,1491,1432,2366,1993,5564,5146]} 1. d4 {[%emt 0:12:28]} Nf6 {[%emt 0:00:06]} 2. c4 {[%emt 0:01:28]} e6 {[%emt 0:00:06]} 3. Nf3 {[%emt 0:01:14]} b6 {[%emt 0:00:07]} 4. a3 {[%emt 0:00:48]} Bb7 {[%emt 0:00:51]} 5. Nc3 {[%emt 0:00:51]} d5 {[%emt 0:00:14]} 6. cxd5 {[%emt 0:01:13]} exd5 {[%emt 0:00:32]} 7. g3 {[%emt 0:01:12]} Nbd7 {[%emt 0:04:46]} 8. Bg2 {[%emt 0:03:46]} Be7 {[%emt 0:03:35]} 9. O-O {[%emt 0:01:32]} O-O {[%emt 0:00:03]} 10. Bf4 {[%emt 0:03:25]} a6 {[%emt 0:09:34]} 11. Rc1 {[%emt 0:03:30] E12: Queen's Indian: Unusual White 4th moves, 4 a3, 4 Nc3 Bb7 5 a3 and 4 Nc3 Bb7 .} Rc8 {[%emt 0:01:03]} 12. Ne5 {[%emt 0:16:13]} Re8 {[%emt 0:05:57]} 13. Qb3 {[%emt 0:05:45] [#] 0x0.00207a9c8126dp-1022s more active pieces. White is slightly better.} c5 $146 {[%emt 0:06:04]} ({Predecessor:} 13... c6 14. Nxd7 Nxd7 15. Rfd1 Bg5 16. Bxg5 Qxg5 17. e3 Re7 18. Na4 b5 19. Nc5 Nxc5 20. Rxc5 {1-0 (61) Pencheva,I (1799)-Kantardzhieva,T (1943) Vratsa 2012}) 14. Nxd7 {[%emt 0:03:44]} ({Of course not} 14. Bxd5 Nxd5 15. Nxd5 Nxe5 16. Nxe7+ Qxe7 $11) 14... Qxd7 {[%emt 0:00:52]} 15. dxc5 {[%emt 0:13:50]} Bxc5 {[%emt 0:06:17]} 16. Na4 {[%emt 0:04:21]} Rxe2 {[%emt 0:03:30]} 17. Nxb6 {[%emt 0:03:17]} Bxb6 {[%emt 0:02:39]} 18. Qxb6 {[%emt 0:00:52]} Qb5 {[%emt 0:01:01]} 19. Rxc8+ {[%emt 0:02:35]} Bxc8 {[%emt 0:00:11]} 20. Qc7 {[%emt 0:01:22]} Be6 {[%emt 0:10:27]} (20... Bf5 $14) 21. Be5 {[%emt 0:01:19]} (21. Qd8+ $16 Qe8 22. Qxe8+ Nxe8 23. Rb1) 21... Qd7 {[%emt 0:04:15]} (21... h6 $1 $11 {remains equal.}) 22. Qb6 $16 {[%emt 0:02:40][%cal Of1c1]} Qb5 {[%emt 0:01:50]} (22... Qc8 $16 {might work better.} 23. Qd4 Bh3) 23. Qd4 {[%emt 0:03:02]} (23. Qd8+ $18 Ne8 24. Bc3) 23... Ne8 {[%emt 0:00:43]} 24. Qf4 {[%emt 0:01:09]} f6 {[%emt 0:04:38]} 25. Bc3 {[%emt 0:01:10]} Qd3 {[%emt 0:02:19]} (25... Bf7 $16 {was called for.} 26. Rd1 Re7) 26. Qf3 {[%emt 0:01:12]} Qc2 {[%emt 0:02:01]} 27. Qh5 {[%emt 0:01:28][%cal Rh5e8] [#]} g6 {[%emt 0:02:53]} (27... Nc7 $16 28. Bf3 Bf7) 28. Qh4 $18 {[%emt 0:00:16]} g5 {[%emt 0:01:47]} (28... Qd3 {was worth a try.} 29. Qf4 (29. Bxf6 Nxf6 30. Qxf6 Qf5 $16) 29... Bf7) 29. Qd4 {[%emt 0:01:02]} Qf5 {[%emt 0:01:42]} 30. Qb6 {[%emt 0:00:32] Against Nd6} Qd3 {[%emt 0:02:18]} 31. Rc1 {[%emt 0:01:56][%cal Bf1c1,Bc1e1,Be1e8,Be8d8,Bd8d6][%mdl 32] Bf1 is the strong threat.} d4 {[%emt 0:15:37]} 32. Qxd4 {[%emt 0:00:58]} Qf5 {[%emt 0:00:07]} (32... Qxd4 33. Bxd4 Rd2) 33. Bf1 {[%emt 0:00:41] This bishop pair is nice.} Rc2 {[%emt 0:00:53]} (33... Re4 $142) 34. Re1 {[%emt 0:01:17][%cal Oe1e6] [#] aiming for Rxe6! White is clearly winning.} Bd5 {[%emt 0:02:58]} 35. Rxe8+ {[%emt 0:01:27]} Kf7 {[%emt 0:00:01]} 36. Rd8 {[%emt 0:00:35]} Bc6 {[%emt 0:00:37]} 37. Rd6 {[%emt 0:00:46] Weighted Error Value: White=0.20 (precise) /Black=0.47} 1-0